[Event "*** Titled Tuesday Blitz"]
[Site "Chess.com"]
[Date "2021.02.16"]
[Round "2"]
[White "TigrVShlyape"]
[Black "Artem_Sadovsky"]
[Result "1/2-1/2"]
[WhiteElo "2913"]
[BlackElo "2578"]
[TimeControl "180+1"]
[EndTime "10:21:40 PST"]
[Termination "Game drawn by repetition"]

1. d4 {[%clk 0:03:00.9]} 1... d5 {[%clk 0:02:50.6]} 2. Nf3 {[%clk 0:02:58.9]}
2... Nf6 {[%clk 0:02:49.7]} 3. Bf4 {[%clk 0:02:58.1]} 3... c5 {[%clk 0:02:49.4]}
4. e3 {[%clk 0:02:40.5]} 4... Nc6 {[%clk 0:02:49.1]} 5. Nbd2 {[%clk 0:02:39.6]}
5... Bg4 {[%clk 0:02:42.3]} 6. c3 {[%clk 0:02:28.9]} 6... e6 {[%clk 0:02:42.4]}
7. Qb3 {[%clk 0:02:28.4]} 7... Qb6 {[%clk 0:02:27.4]} 8. Ne5 {[%clk 0:02:26]}
8... Nxe5 {[%clk 0:02:16.5]} 9. dxe5 {[%clk 0:02:23.4]} 9... Nd7 {[%clk
0:02:13.2]} 10. Bb5 {[%clk 0:02:15.9]} 10... Qc7 {[%clk 0:01:49]} 11. c4 {[%clk
0:02:10.6]} 11... a6 {[%clk 0:01:38.2]} 12. Ba4 {[%clk 0:01:55.7]} 12... Rb8
{[%clk 0:01:13.6]} 13. Bxd7+ {[%clk 0:01:38.2]} 13... Qxd7 {[%clk 0:01:13.4]}
14. a4 {[%clk 0:01:25.6]} 14... Be7 {[%clk 0:01:03.1]} 15. a5 {[%clk 0:01:22.3]}
15... O-O {[%clk 0:01:02.5]} 16. cxd5 {[%clk 0:01:13.2]} 16... exd5 {[%clk
0:01:01.7]} 17. e6 {[%clk 0:01:11.5]} 17... fxe6 {[%clk 0:00:51.4]} 18. Bxb8
{[%clk 0:01:10.7]} 18... Rxb8 {[%clk 0:00:52.3]} 19. O-O {[%clk 0:01:10]} 19...
Bd6 {[%clk 0:00:42.3]} 20. Rfe1 {[%clk 0:01:05]} 20... c4 {[%clk 0:00:40.6]} 21.
Qc3 {[%clk 0:01:03]} 21... Rf8 {[%clk 0:00:33.9]} 22. h3 {[%clk 0:00:59.3]}
22... Bh5 {[%clk 0:00:31.2]} 23. b3 {[%clk 0:00:51.9]} 23... Qc7 {[%clk
0:00:28]} 24. f4 {[%clk 0:00:42]} 24... e5 {[%clk 0:00:13.5]} 25. bxc4 {[%clk
0:00:34.2]} 25... d4 {[%clk 0:00:13.9]} 26. exd4 {[%clk 0:00:32.2]} 26... exd4
{[%clk 0:00:14.8]} 27. Qd3 {[%clk 0:00:30.7]} 27... Bxf4 {[%clk 0:00:15]} 28.
Nf1 {[%clk 0:00:27.7]} 28... Qc5 {[%clk 0:00:10.7]} 29. Kh1 {[%clk 0:00:23.2]}
29... Bg6 {[%clk 0:00:10.9]} 30. Qf3 {[%clk 0:00:18.9]} 30... d3 {[%clk
0:00:09.7]} 31. Qxb7 {[%clk 0:00:17.5]} 31... Kh8 {[%clk 0:00:07]} 32. Qxa6
{[%clk 0:00:15.7]} 32... d2 {[%clk 0:00:06.7]} 33. Red1 {[%clk 0:00:14.3]} 33...
Qf2 {[%clk 0:00:06.8]} 34. Qb6 {[%clk 0:00:13.2]} 34... Qe2 {[%clk 0:00:05.3]}
35. Qc5 {[%clk 0:00:12]} 35... Re8 {[%clk 0:00:04.8]} 36. Qc6 {[%clk 0:00:11.2]}
36... h5 {[%clk 0:00:02.9]} 37. Qf3 {[%clk 0:00:10.6]} 37... Qe5 {[%clk
0:00:02.3]} 38. a6 {[%clk 0:00:08.5]} 38... Be4 {[%clk 0:00:02.7]} 39. Qf2
{[%clk 0:00:08.7]} 39... Qg5 {[%clk 0:00:03.2]} 40. Nxd2 {[%clk 0:00:08.2]}
40... Ba8 {[%clk 0:00:03.2]} 41. Nf3 {[%clk 0:00:07.9]} 41... Qg6 {[%clk
0:00:02.9]} 42. a7 {[%clk 0:00:07.3]} 42... Bg3 {[%clk 0:00:03]} 43. Qf1 {[%clk
0:00:07]} 43... Rf8 {[%clk 0:00:03.9]} 44. Rd3 {[%clk 0:00:06.6]} 44... Qf5
{[%clk 0:00:03.6]} 45. Rad1 {[%clk 0:00:06]} 45... Bc7 {[%clk 0:00:03.6]} 46.
Qe2 {[%clk 0:00:05]} 46... h4 {[%clk 0:00:03.5]} 47. Re3 {[%clk 0:00:05.3]}
47... Qf4 {[%clk 0:00:03.7]} 48. Kg1 {[%clk 0:00:04.6]} 48... Bxf3 {[%clk
0:00:03.8]} 49. Rxf3 {[%clk 0:00:04.4]} 49... Qh2+ {[%clk 0:00:03.9]} 50. Kf1
{[%clk 0:00:04.9]} 50... Qh1+ {[%clk 0:00:03.9]} 51. Kf2 {[%clk 0:00:05.3]}
51... Bb6+ {[%clk 0:00:03.9]} 52. c5 {[%clk 0:00:04.9]} 52... Bxc5+ {[%clk
0:00:04.5]} 53. Qe3 {[%clk 0:00:05.4]} 53... Bxe3+ {[%clk 0:00:04.9]} 54. Kxe3
{[%clk 0:00:05.8]} 54... Rxf3+ {[%clk 0:00:05.1]} 55. gxf3 {[%clk 0:00:06.2]}
55... Qxd1 {[%clk 0:00:03.7]} 56. a8=Q+ {[%clk 0:00:07.1]} 56... Kh7 {[%clk
0:00:04]} 57. Qe4+ {[%clk 0:00:08]} 57... Kg8 {[%clk 0:00:03.9]} 58. Qxh4 {[%clk
0:00:08.9]} 58... Qc1+ {[%clk 0:00:04]} 59. Kf2 {[%clk 0:00:09.3]} 59... Qd2+
{[%clk 0:00:04.5]} 60. Kg3 {[%clk 0:00:09.5]} 60... Qe1+ {[%clk 0:00:05]} 61.
Kg4 {[%clk 0:00:10]} 61... Qe6+ {[%clk 0:00:04.7]} 62. Kf4 {[%clk 0:00:10.4]}
62... Qd6+ {[%clk 0:00:04.2]} 63. Ke3 {[%clk 0:00:10.5]} 63... Qa3+ {[%clk
0:00:04.3]} 64. Ke2 {[%clk 0:00:10.9]} 64... Qb2+ {[%clk 0:00:04.7]} 65. Kf1
{[%clk 0:00:11.3]} 65... Qb5+ {[%clk 0:00:05]} 66. Kg2 {[%clk 0:00:11.3]} 66...
Qe2+ {[%clk 0:00:05.2]} 67. Qf2 {[%clk 0:00:11.4]} 67... Qe5 {[%clk 0:00:06]}
68. h4 {[%clk 0:00:11.7]} 68... Qf4 {[%clk 0:00:06.2]} 69. Qg3 {[%clk 0:00:12]}
69... Qd2+ {[%clk 0:00:06.5]} 70. Kh3 {[%clk 0:00:12.6]} 70... Qd7+ {[%clk
0:00:07.4]} 71. Qg4 {[%clk 0:00:12.9]} 71... Qd3 {[%clk 0:00:07.9]} 72. Qe4
{[%clk 0:00:12.9]} 72... Qf1+ {[%clk 0:00:08]} 73. Kg3 {[%clk 0:00:13]} 73...
Qg1+ {[%clk 0:00:08.6]} 74. Kf4 {[%clk 0:00:13.5]} 74... Qh2+ {[%clk 0:00:09.1]}
75. Kf5 {[%clk 0:00:14]} 75... Qh3+ {[%clk 0:00:09.1]} 76. Kg6 {[%clk
0:00:14.3]} 76... Qg3+ {[%clk 0:00:08.3]} 77. Kh5 {[%clk 0:00:12.8]} 77... Kh8
{[%clk 0:00:05.5]} 78. Qg4 {[%clk 0:00:11.9]} 78... Qe5+ {[%clk 0:00:05.1]} 79.
Qg5 {[%clk 0:00:12.2]} 79... Qe8+ {[%clk 0:00:04.3]} 80. Qg6 {[%clk 0:00:12.5]}
80... Qe5+ {[%clk 0:00:04]} 81. Kg4 {[%clk 0:00:12.8]} 81... Qd4+ {[%clk
0:00:04.5]} 82. Kh3 {[%clk 0:00:13]} 82... Qd7+ {[%clk 0:00:04.2]} 83. Qg4
{[%clk 0:00:12.8]} 83... Qd3 {[%clk 0:00:04]} 84. h5 {[%clk 0:00:13.2]} 84...
Qf1+ {[%clk 0:00:03.6]} 85. Kh4 {[%clk 0:00:13.2]} 85... Qf2+ {[%clk 0:00:04.1]}
86. Kg5 {[%clk 0:00:12.9]} 86... Qd2+ {[%clk 0:00:04.5]} 87. Kf5 {[%clk
0:00:12.8]} 87... Qd5+ {[%clk 0:00:04.5]} 88. Kf4 {[%clk 0:00:12.4]} 88... Qd4+
{[%clk 0:00:04.6]} 89. Kg3 {[%clk 0:00:12.5]} 89... Qg1+ {[%clk 0:00:05.2]} 90.
Kh4 {[%clk 0:00:12.7]} 90... Qe1+ {[%clk 0:00:03.3]} 91. Kg5 {[%clk 0:00:11.7]}
91... Qe5+ {[%clk 0:00:03]} 92. Qf5 {[%clk 0:00:11.4]} 92... Qg3+ {[%clk
0:00:03.2]} 93. Qg4 {[%clk 0:00:11.7]} 93... Qe5+ {[%clk 0:00:03.6]} 94. Qf5
{[%clk 0:00:11.2]} 94... Qg3+ {[%clk 0:00:03.7]} 95. Qg4 {[%clk 0:00:11.3]}
95... Qe5+ {[%clk 0:00:04.1]} 1/2-1/2

[Event "*** Titled Tuesday Blitz"]
[Site "Chess.com"]
[Date "2021.02.16"]
[Round "2"]
[White "Skillcam"]
[Black "AlexOstrovskiy"]
[Result "1/2-1/2"]
[WhiteElo "2508"]
[BlackElo "2763"]
[TimeControl "180+1"]
[EndTime "10:21:59 PST"]
[Termination "Game drawn by agreement"]

1. d4 {[%clk 0:03:00.9]} 1... Nf6 {[%clk 0:02:59.3]} 2. Bg5 {[%clk 0:03:01.3]}
2... g6 {[%clk 0:02:58.8]} 3. Bxf6 {[%clk 0:03:00.6]} 3... exf6 {[%clk
0:02:59.7]} 4. c4 {[%clk 0:03:01]} 4... Bg7 {[%clk 0:02:58.4]} 5. Nc3 {[%clk
0:03:01.6]} 5... O-O {[%clk 0:02:58.7]} 6. g3 {[%clk 0:03:02.2]} 6... f5 {[%clk
0:02:59.2]} 7. e3 {[%clk 0:03:01.5]} 7... d6 {[%clk 0:02:55.7]} 8. Bg2 {[%clk
0:03:01.5]} 8... c5 {[%clk 0:02:55.6]} 9. dxc5 {[%clk 0:03:00.6]} 9... dxc5
{[%clk 0:02:53.8]} 10. Nge2 {[%clk 0:03:01.2]} 10... Nc6 {[%clk 0:02:39.9]} 11.
O-O {[%clk 0:03:00.4]} 11... Be6 {[%clk 0:02:34.6]} 12. Nd5 {[%clk 0:02:54.9]}
12... Qa5 {[%clk 0:02:27.4]} 13. Nef4 {[%clk 0:02:40.4]} 13... Rfd8 {[%clk
0:02:19.8]} 14. Qb3 {[%clk 0:02:31.6]} 14... Rab8 {[%clk 0:02:05.4]} 15. a4
{[%clk 0:01:59.8]} 15... Nb4 {[%clk 0:01:37.9]} 16. Rfd1 {[%clk 0:01:55.7]}
16... Kf8 {[%clk 0:01:16.1]} 17. h4 {[%clk 0:01:40.1]} 17... h5 {[%clk
0:01:10.1]} 18. Rab1 {[%clk 0:01:01.6]} 18... a6 {[%clk 0:01:02.1]} 19. Ra1
{[%clk 0:01:00.1]} 19... Nc6 {[%clk 0:00:55.7]} 20. Nxe6+ {[%clk 0:00:55.6]}
20... fxe6 {[%clk 0:00:55]} 21. Nf4 {[%clk 0:00:56.5]} 21... Kf7 {[%clk
0:00:54.2]} 22. Rxd8 {[%clk 0:00:52.6]} 22... Qxd8 {[%clk 0:00:50.9]} 23. Rd1
{[%clk 0:00:53.2]} 23... Qc7 {[%clk 0:00:50.8]} 24. Qc2 {[%clk 0:00:28.6]} 24...
Rd8 {[%clk 0:00:44.3]} 25. b3 {[%clk 0:00:28]} 25... Nb4 {[%clk 0:00:42]} 26.
Qb1 {[%clk 0:00:27.4]} 26... b6 {[%clk 0:00:40.7]} 27. Nh3 {[%clk 0:00:27.4]}
27... Bf6 {[%clk 0:00:39.2]} 28. Nf4 {[%clk 0:00:27.7]} 28... Rd6 {[%clk
0:00:37.8]} 29. Bf3 {[%clk 0:00:24.7]} 29... Qd8 {[%clk 0:00:33.7]} 30. Kg2
{[%clk 0:00:24.8]} 30... Rd2 {[%clk 0:00:26.7]} 31. Rxd2 {[%clk 0:00:17]} 31...
Qxd2 {[%clk 0:00:27.6]} 32. Qd1 {[%clk 0:00:17.6]} 32... Qxd1 {[%clk 0:00:17.1]}
33. Bxd1 {[%clk 0:00:18.5]} 33... e5 {[%clk 0:00:16.8]} 34. Ne2 {[%clk
0:00:16.8]} 34... e4 {[%clk 0:00:16.7]} 35. Nf4 {[%clk 0:00:16.1]} 35... Be5
{[%clk 0:00:15]} 36. Nh3 {[%clk 0:00:08.8]} 36... Nd3 {[%clk 0:00:13.7]} 37. Kf1
{[%clk 0:00:08.1]} 37... Kf6 {[%clk 0:00:12.7]} 38. Ke2 {[%clk 0:00:05.6]} 38...
Nb4 {[%clk 0:00:09.8]} 39. Ng5 {[%clk 0:00:05.9]} 39... Na2 {[%clk 0:00:09.1]}
40. Nh7+ {[%clk 0:00:05.8]} 40... Ke7 {[%clk 0:00:09.5]} 41. Ng5 {[%clk
0:00:06.2]} 41... Nc3+ {[%clk 0:00:09.1]} 42. Kd2 {[%clk 0:00:06.8]} 42... Na2
{[%clk 0:00:09.4]} 43. Kc2 {[%clk 0:00:06.4]} 43... Nb4+ {[%clk 0:00:09.6]} 44.
Kd2 {[%clk 0:00:07.3]} 44... Nd3 {[%clk 0:00:10.1]} 45. Ke2 {[%clk 0:00:06.9]}
45... Bc3 {[%clk 0:00:09.5]} 46. Nh3 {[%clk 0:00:06.2]} 46... Kf6 {[%clk
0:00:09.2]} 47. Bc2 {[%clk 0:00:06.7]} 47... Nb4 {[%clk 0:00:08.7]} 48. Bd1
{[%clk 0:00:07.3]} 48... Be5 {[%clk 0:00:08.7]} 49. Nf4 {[%clk 0:00:05.3]} 49...
Bxf4 {[%clk 0:00:07.5]} 50. exf4 {[%clk 0:00:06.2]} 50... Ke6 {[%clk 0:00:07.5]}
51. Ke3 {[%clk 0:00:05.4]} 51... Nc6 {[%clk 0:00:05.8]} 52. Ke2 {[%clk
0:00:05.5]} 52... Nd4+ {[%clk 0:00:05.9]} 53. Ke3 {[%clk 0:00:06.4]} 53... Kd6
{[%clk 0:00:05.5]} 54. Kd2 {[%clk 0:00:06.9]} 54... Kc6 {[%clk 0:00:05.1]} 55.
Kc3 {[%clk 0:00:07.3]} 55... b5 {[%clk 0:00:05.3]} 56. axb5+ {[%clk 0:00:08.2]}
56... axb5 {[%clk 0:00:06.2]} 57. Kd2 {[%clk 0:00:07.9]} 57... b4 {[%clk
0:00:05]} 58. Ke3 {[%clk 0:00:07.7]} 58... Kd6 {[%clk 0:00:05.2]} 59. Kd2 {[%clk
0:00:07.4]} 59... Ne6 {[%clk 0:00:05]} 60. Ke3 {[%clk 0:00:07.8]} 60... Nd4
{[%clk 0:00:05.5]} 61. Kd2 {[%clk 0:00:08.2]} 61... Ke6 {[%clk 0:00:06.2]} 62.
Ke3 {[%clk 0:00:08.7]} 62... Nc6 {[%clk 0:00:06.8]} 63. Kd2 {[%clk 0:00:09.1]}
63... Ne7 {[%clk 0:00:07.3]} 64. Ke3 {[%clk 0:00:09.5]} 64... Ng8 {[%clk
0:00:07.8]} 65. Kd2 {[%clk 0:00:10]} 65... Nf6 {[%clk 0:00:08.4]} 66. Ke3 {[%clk
0:00:10.5]} 66... Nd7 {[%clk 0:00:08.8]} 67. Kd2 {[%clk 0:00:10.7]} 67... Nb8
{[%clk 0:00:09.4]} 68. Ke3 {[%clk 0:00:11.3]} 68... Nc6 {[%clk 0:00:09.9]} 69.
f3 {[%clk 0:00:11]} 69... exf3 {[%clk 0:00:10]} 70. Bxf3 {[%clk 0:00:10.7]}
70... Nd4 {[%clk 0:00:10.9]} 71. Bd1 {[%clk 0:00:10.8]} 71... Kd6 {[%clk
0:00:11.2]} 72. Kd3 {[%clk 0:00:11.1]} 72... Kc6 {[%clk 0:00:11.6]} 73. Ke3
{[%clk 0:00:11.7]} 73... Kb6 {[%clk 0:00:10.8]} 74. Kd3 {[%clk 0:00:12.1]} 74...
Kc7 {[%clk 0:00:11.2]} 75. Ke3 {[%clk 0:00:12.4]} 75... Kd7 {[%clk 0:00:11.6]}
76. Kd3 {[%clk 0:00:13]} 76... Ke6 {[%clk 0:00:12.1]} 77. Ke3 {[%clk 0:00:13.4]}
77... Kf6 {[%clk 0:00:12.3]} 78. Kd3 {[%clk 0:00:13.4]} 78... Ne6 {[%clk
0:00:11.8]} 79. Ke3 {[%clk 0:00:13.7]} 79... Ke7 {[%clk 0:00:11.7]} 80. Kd3
{[%clk 0:00:10.6]} 80... Kd6 {[%clk 0:00:11.3]} 81. Ke3 {[%clk 0:00:11.1]} 81...
Nd8 {[%clk 0:00:11.6]} 82. Bf3 {[%clk 0:00:09.9]} 82... Ne6 {[%clk 0:00:09.9]}
83. Bd1 {[%clk 0:00:05]} 83... Nd4 {[%clk 0:00:10.3]} 84. Kd3 {[%clk 0:00:05.4]}
84... Kc7 {[%clk 0:00:09.7]} 85. Ke3 {[%clk 0:00:05.6]} 85... Kd8 {[%clk
0:00:10.3]} 86. Kd3 {[%clk 0:00:06.2]} 86... Ke8 {[%clk 0:00:10.9]} 87. Ke3
{[%clk 0:00:06.8]} 87... Kf7 {[%clk 0:00:11.4]} 88. Kd3 {[%clk 0:00:07.4]} 88...
Kg7 {[%clk 0:00:11.8]} 89. Ke3 {[%clk 0:00:08]} 89... Nc6 {[%clk 0:00:11.4]} 90.
Kd3 {[%clk 0:00:08.4]} 90... Kf6 {[%clk 0:00:09.9]} 91. Bf3 {[%clk 0:00:08]}
91... Nd4 {[%clk 0:00:09.7]} 92. Bd1 {[%clk 0:00:08.7]} 92... Ne6 {[%clk
0:00:08.6]} 93. Ke3 {[%clk 0:00:09.1]} 93... Nf8 {[%clk 0:00:07.7]} 94. Bf3
{[%clk 0:00:08.4]} 94... Nh7 {[%clk 0:00:08.1]} 95. Bd5 {[%clk 0:00:07.8]} 95...
Ke7 {[%clk 0:00:08.3]} 96. Bc6 {[%clk 0:00:06.8]} 96... Nf6 {[%clk 0:00:08.5]}
97. Bf3 {[%clk 0:00:06.7]} 97... Kd6 {[%clk 0:00:08.7]} 98. Kd3 {[%clk
0:00:06.5]} 98... Ne8 {[%clk 0:00:07.7]} 99. Bd5 {[%clk 0:00:06.3]} 99... Ke7
{[%clk 0:00:08.1]} 100. Bf3 {[%clk 0:00:06.2]} 100... Ng7 {[%clk 0:00:06.6]}
101. Bd5 {[%clk 0:00:04.8]} 101... Kf6 {[%clk 0:00:06.8]} 102. Ke3 {[%clk
0:00:03.8]} 102... Ne8 {[%clk 0:00:06.9]} 103. Kd3 {[%clk 0:00:04.3]} 103... Nc7
{[%clk 0:00:07.4]} 104. Bf3 {[%clk 0:00:04.8]} 104... Ne6 {[%clk 0:00:06.5]}
105. Ke3 {[%clk 0:00:05.4]} 105... Nd4 {[%clk 0:00:07.4]} 106. Bd1 {[%clk
0:00:06.1]} 106... Ke6 {[%clk 0:00:07.7]} 107. Kd3 {[%clk 0:00:06.7]} 107... Kf7
{[%clk 0:00:07.1]} 108. Ke3 {[%clk 0:00:07.2]} 108... Kf6 {[%clk 0:00:07.5]}
1/2-1/2

[Event "*** Titled Tuesday Blitz"]
[Site "Chess.com"]
[Date "2021.02.16"]
[Round "3"]
[White "MoreChessJulia"]
[Black "ChainsOfFantasia"]
[Result "0-1"]
[WhiteElo "2145"]
[BlackElo "2482"]
[TimeControl "180+1"]
[EndTime "10:26:24 PST"]
[Termination "ChainsOfFantasia won by resignation"]

1. d4 {[%clk 0:03:00.9]} 1... Nf6 {[%clk 0:02:59.9]} 2. Nf3 {[%clk 0:03:01.3]}
2... d5 {[%clk 0:02:59.3]} 3. g3 {[%clk 0:03:01.8]} 3... e6 {[%clk 0:02:58.2]}
4. Bg2 {[%clk 0:03:02.4]} 4... Be7 {[%clk 0:02:59.1]} 5. O-O {[%clk 0:03:02.4]}
5... O-O {[%clk 0:03:00]} 6. c4 {[%clk 0:03:01.3]} 6... dxc4 {[%clk 0:03:00.9]}
7. Ne5 {[%clk 0:03:00.5]} 7... c5 {[%clk 0:03:00.8]} 8. dxc5 {[%clk 0:02:57.5]}
8... Qc7 {[%clk 0:03:01.1]} 9. Nxc4 {[%clk 0:02:55.4]} 9... Rd8 {[%clk
0:03:01.3]} 10. Qb3 {[%clk 0:02:47.1]} 10... Nc6 {[%clk 0:03:00.9]} 11. Bf4
{[%clk 0:02:40.6]} 11... e5 {[%clk 0:02:58.8]} 12. Bg5 {[%clk 0:02:40.1]} 12...
Nd4 {[%clk 0:02:54.8]} 13. Qd1 {[%clk 0:02:31.2]} 13... Bf5 {[%clk 0:02:45]} 14.
Nba3 {[%clk 0:02:27.3]} 14... Nf3+ {[%clk 0:02:40.8]} 15. Bxf3 {[%clk
0:02:25.5]} 15... Rxd1 {[%clk 0:02:41.7]} 16. Rfxd1 {[%clk 0:02:25.5]} 16...
Bxc5 {[%clk 0:02:41.1]} 17. Bxf6 {[%clk 0:02:22.6]} 17... gxf6 {[%clk
0:02:41.1]} 18. e3 {[%clk 0:02:23]} 18... a6 {[%clk 0:02:32.9]} 19. Rac1 {[%clk
0:02:22.3]} 19... Rd8 {[%clk 0:02:31.4]} 20. Rxd8+ {[%clk 0:02:20.1]} 20... Qxd8
{[%clk 0:02:32.3]} 21. b3 {[%clk 0:02:14.9]} 21... b5 {[%clk 0:02:20.3]} 22.
Nxe5 {[%clk 0:02:09.3]} 22... Bxa3 {[%clk 0:02:14.6]} 0-1

[Event "*** Titled Tuesday Blitz"]
[Site "Chess.com"]
[Date "2021.02.16"]
[Round "3"]
[White "Cambek64"]
[Black "PawnEatingZombie"]
[Result "1-0"]
[WhiteElo "2354"]
[BlackElo "2136"]
[TimeControl "180+1"]
[EndTime "10:26:24 PST"]
[Termination "Cambek64 won by resignation"]

1. e4 {[%clk 0:03:00.9]} 1... c6 {[%clk 0:03:00.4]} 2. d4 {[%clk 0:03:00.2]}
2... d5 {[%clk 0:03:01.3]} 3. Nc3 {[%clk 0:03:00.2]} 3... dxe4 {[%clk
0:03:00.3]} 4. Nxe4 {[%clk 0:03:00.8]} 4... Bf5 {[%clk 0:03:00.9]} 5. Ng3 {[%clk
0:02:59.9]} 5... Bg6 {[%clk 0:03:01.4]} 6. Nf3 {[%clk 0:03:00.2]} 6... Nd7
{[%clk 0:03:00.7]} 7. h4 {[%clk 0:03:00.4]} 7... h6 {[%clk 0:03:01.2]} 8. h5
{[%clk 0:03:00.9]} 8... Bh7 {[%clk 0:03:01.8]} 9. Bd3 {[%clk 0:03:01.2]} 9...
Bxd3 {[%clk 0:03:02.3]} 10. Qxd3 {[%clk 0:03:01.7]} 10... e6 {[%clk 0:03:03]}
11. Bf4 {[%clk 0:03:01.6]} 11... Qa5+ {[%clk 0:03:02.4]} 12. Bd2 {[%clk
0:03:01.4]} 12... Bb4 {[%clk 0:03:01.2]} 13. c3 {[%clk 0:03:00.6]} 13... Be7
{[%clk 0:03:01.3]} 14. c4 {[%clk 0:03:00.3]} 14... Qc7 {[%clk 0:03:01.1]} 15.
O-O-O {[%clk 0:02:58.7]} 15... Ngf6 {[%clk 0:03:00.1]} 16. Kb1 {[%clk
0:02:55.9]} 16... b5 {[%clk 0:02:59]} 17. Rc1 {[%clk 0:02:48.2]} 17... bxc4
{[%clk 0:02:58.8]} 18. Qxc4 {[%clk 0:02:47.6]} 18... Rc8 {[%clk 0:02:52.6]} 19.
Bb4 {[%clk 0:02:46.4]} 19... c5 {[%clk 0:02:43.2]} 20. dxc5 {[%clk 0:02:43]}
20... Bxc5 {[%clk 0:02:30.8]} 21. Bxc5 {[%clk 0:02:39.4]} 21... Qxc5 {[%clk
0:02:29.4]} 22. Qa4 {[%clk 0:02:36.7]} 1-0

[Event "*** Titled Tuesday Blitz"]
[Site "Chess.com"]
[Date "2021.02.16"]
[Round "3"]
[White "MarcoRiehle"]
[Black "jens1102"]
[Result "1-0"]
[WhiteElo "2697"]
[BlackElo "2430"]
[TimeControl "180+1"]
[EndTime "10:26:43 PST"]
[Termination "MarcoRiehle won by resignation"]

1. e4 {[%clk 0:03:00.9]} 1... e5 {[%clk 0:02:59.4]} 2. Nf3 {[%clk 0:03:00.5]}
2... Nc6 {[%clk 0:03:00]} 3. Bc4 {[%clk 0:02:59.9]} 3... Bc5 {[%clk 0:02:59.8]}
4. O-O {[%clk 0:02:59.1]} 4... Nf6 {[%clk 0:03:00.3]} 5. d4 {[%clk 0:02:58.4]}
5... Bxd4 {[%clk 0:02:58.4]} 6. Nxd4 {[%clk 0:02:58.4]} 6... Nxd4 {[%clk
0:02:59.3]} 7. Bg5 {[%clk 0:02:58.8]} 7... d6 {[%clk 0:02:58.6]} 8. f4 {[%clk
0:02:58.3]} 8... Be6 {[%clk 0:02:57.9]} 9. Na3 {[%clk 0:02:57.9]} 9... c6 {[%clk
0:02:56.9]} 10. c3 {[%clk 0:02:54.3]} 10... Bxc4 {[%clk 0:02:54.8]} 11. Nxc4
{[%clk 0:02:54.4]} 11... b5 {[%clk 0:02:34.3]} 12. fxe5 {[%clk 0:02:40.1]} 12...
dxe5 {[%clk 0:02:18.3]} 13. Nxe5 {[%clk 0:02:35.4]} 13... Ne6 {[%clk 0:02:18.4]}
14. Qxd8+ {[%clk 0:02:34.1]} 14... Rxd8 {[%clk 0:02:18.6]} 15. Bxf6 {[%clk
0:02:33.8]} 15... gxf6 {[%clk 0:02:18.6]} 16. Rxf6 {[%clk 0:02:34.3]} 16... O-O
{[%clk 0:02:00.5]} 17. Raf1 {[%clk 0:02:32.4]} 17... Rd2 {[%clk 0:01:57.4]} 18.
Nxf7 {[%clk 0:02:32.1]} 18... Rxb2 {[%clk 0:01:52]} 19. Nh6+ {[%clk 0:02:27.2]}
19... Kg7 {[%clk 0:01:51.2]} 20. Rxe6 {[%clk 0:02:26.8]} 20... Rxf1+ {[%clk
0:01:44.1]} 21. Kxf1 {[%clk 0:02:27.7]} 21... Rxa2 {[%clk 0:01:44.5]} 22. Nf5+
{[%clk 0:02:27.3]} 22... Kf7 {[%clk 0:01:44.7]} 23. Rxc6 {[%clk 0:02:28.2]}
23... a5 {[%clk 0:01:43.6]} 24. e5 {[%clk 0:02:28.1]} 24... b4 {[%clk
0:01:41.6]} 25. e6+ {[%clk 0:02:27.4]} 25... Kf6 {[%clk 0:01:40.7]} 26. e7+
{[%clk 0:02:27.1]} 26... Kf7 {[%clk 0:01:41.4]} 27. Rc8 {[%clk 0:02:26.1]} 1-0

[Event "*** Titled Tuesday Blitz"]
[Site "Chess.com"]
[Date "2021.02.16"]
[Round "3"]
[White "dosto07"]
[Black "PotapovaM"]
[Result "1/2-1/2"]
[WhiteElo "2412"]
[BlackElo "2603"]
[TimeControl "180+1"]
[EndTime "10:26:46 PST"]
[Termination "Game drawn by repetition"]

1. e4 {[%clk 0:03:00.9]} 1... c5 {[%clk 0:02:53.9]} 2. Nf3 {[%clk 0:03:00.5]}
2... d6 {[%clk 0:02:49.9]} 3. Bb5+ {[%clk 0:02:59.1]} 3... Nd7 {[%clk
0:02:49.8]} 4. O-O {[%clk 0:02:57.4]} 4... a6 {[%clk 0:02:49.9]} 5. Bxd7+ {[%clk
0:02:55.5]} 5... Bxd7 {[%clk 0:02:50.8]} 6. d4 {[%clk 0:02:55.5]} 6... cxd4
{[%clk 0:02:51.7]} 7. Qxd4 {[%clk 0:02:55.6]} 7... e5 {[%clk 0:02:50.4]} 8. Qd3
{[%clk 0:02:54.7]} 8... h6 {[%clk 0:02:50.9]} 9. Nc3 {[%clk 0:02:55]} 9... Nf6
{[%clk 0:02:50.2]} 10. a4 {[%clk 0:02:52.6]} 10... Be7 {[%clk 0:02:50.1]} 11.
Rd1 {[%clk 0:02:52.2]} 11... O-O {[%clk 0:02:50.7]} 12. Nd2 {[%clk 0:02:52.1]}
12... Rc8 {[%clk 0:02:37.4]} 13. Nf1 {[%clk 0:02:51.6]} 13... Be6 {[%clk
0:02:33.3]} 14. Ne3 {[%clk 0:02:48.6]} 14... Qc7 {[%clk 0:02:29.1]} 15. a5
{[%clk 0:02:46.6]} 15... b5 {[%clk 0:02:20.1]} 16. axb6 {[%clk 0:02:44.4]} 16...
Qxb6 {[%clk 0:02:20.1]} 17. Rxa6 {[%clk 0:02:40.7]} 17... Qb7 {[%clk 0:02:19.7]}
18. Ra5 {[%clk 0:02:24]} 18... Qb6 {[%clk 0:01:47.4]} 19. Ra6 {[%clk 0:02:11]}
19... Qb7 {[%clk 0:01:46.6]} 20. Ra5 {[%clk 0:02:07.6]} 20... Qb6 {[%clk
0:01:46.3]} 21. Ra6 {[%clk 0:02:02.1]} 1/2-1/2

[Event "*** Titled Tuesday Blitz"]
[Site "Chess.com"]
[Date "2021.02.16"]
[Round "3"]
[White "Chopper1905"]
[Black "Szparu"]
[Result "1-0"]
[WhiteElo "2940"]
[BlackElo "2662"]
[TimeControl "180+1"]
[EndTime "10:26:54 PST"]
[Termination "Chopper1905 won by resignation"]

1. d4 {[%clk 0:03:00.9]} 1... Nf6 {[%clk 0:02:54]} 2. Nf3 {[%clk 0:02:59]} 2...
g6 {[%clk 0:02:52.8]} 3. c4 {[%clk 0:02:58.6]} 3... Bg7 {[%clk 0:02:52.3]} 4. g3
{[%clk 0:02:58.5]} 4... O-O {[%clk 0:02:52.1]} 5. Bg2 {[%clk 0:02:58.6]} 5... d6
{[%clk 0:02:52.6]} 6. O-O {[%clk 0:02:57.9]} 6... Nc6 {[%clk 0:02:51.6]} 7. Nc3
{[%clk 0:02:56.5]} 7... e5 {[%clk 0:02:50.8]} 8. dxe5 {[%clk 0:02:50.6]} 8...
Nxe5 {[%clk 0:02:45.8]} 9. b3 {[%clk 0:02:31.5]} 9... Nxf3+ {[%clk 0:02:35.9]}
10. exf3 {[%clk 0:02:24.7]} 10... d5 {[%clk 0:02:21.4]} 11. Ba3 {[%clk
0:02:19.2]} 11... Re8 {[%clk 0:02:13.7]} 12. cxd5 {[%clk 0:02:19.2]} 12... Nxd5
{[%clk 0:01:51.9]} 13. Nxd5 {[%clk 0:02:19]} 13... Bxa1 {[%clk 0:01:51.4]} 14.
Ne7+ {[%clk 0:02:19.1]} 1-0